bitfinex-derivatives/quotes_SOLF0:USTF0_20250109
["timestamp","ask_amount","ask_price","bid_price","bid_amount"]
[1736444912445,22.65351528,188.28,188.15,5.18]
[1736444913643,2.6571,188.2,188.15,5.18]
[1736444913848,22.65351528,188.28,188.15,5.18]
[1736444914049,2.6574,188.18,188.15,5.18]
[1736444914349,2.6574,188.18,188.12,5.9212]
[1736444914653,19.52081528,188.22,188.08,2.6587]
[1736444914953,1.5944,188.21,188.08,2.6587]
[1736444915150,1.5944,188.21,188.08,19.52081528]
[1736444916656,2.6576,188.17,188.12,2.6581]
[1736444917051,1.5944,188.21,188.09,5.16]
[1736444917251,2.6581,188.13,188.09,5.16]
[1736444917460,1.5944,188.21,188.05,21.06191528]
[1736444917461,19.52081528,188.19,188.05,21.06191528]
[1736444917657,19.52081528,188.19,188.05,1.5411]
[1736444917857,1.5079,188.18,188.05,1.5411]
[1736444918056,2.6579,188.15,188.07,2.6589]
[1736444918258,1.5079,188.18,188.05,21.06191528]
[1736444918762,2.6582,188.13,188.05,21.06191528]
[1736444918957,1.5079,188.18,188.05,21.06191528]
[1736444919254,2.6585,188.1,188.06,2.6591]
[1736444919854,1.5079,188.18,188.08,2.6588]
[1736444920353,2.6583,188.12,188.08,2.6588]
[1736444920553,1.5079,188.18,188.08,2.6588]
[1736444921360,1.5079,188.18,188.06,2.6589]
[1736444921656,1.5079,188.18,188.05,1.5411]
[1736444921959,2.6585,188.11,188.07,2.6589]
[1736444922161,19.52081528,188.16,188.04,1.5291]
[1736444923153,19.52081528,188.16,188.0,5.16]
[1736444923354,19.52081528,188.1,187.98,1.6127]
[1736444923861,3.0725,188.09,187.98,1.6127]
[1736444924055,2.6596,188.03,187.98,4.2728]
[1736444924255,3.0725,188.09,187.98,4.2728]
[1736444924449,2.6595,188.04,187.99,2.66]
[1736444924849,2.6595,188.04,187.98,1.6127]
[1736444925058,3.0725,188.09,187.98,1.6127]
[1736444925464,19.52081528,188.07,187.93,19.52081528]
[1736444925663,1.6032,188.06,187.9,19.52081528]
[1736444926156,2.6602,187.99,187.9,19.52081528]
[1736444926353,1.6032,188.06,187.9,19.52081528]
[1736444926560,2.6605,187.96,187.92,2.661]
[1736444926762,19.52081528,188.04,187.88,5.16]
[1736444927558,19.52081528,188.04,187.87,19.52081528]
[1736444927762,19.52081528,188.04,187.87,24.68081528]
[1736444927962,19.52081528,188.04,187.91,2.6611]
[1736444928359,19.52081528,188.01,187.91,2.6611]
[1736444928559,2.6602,187.98,187.91,2.6611]
[1736444928760,19.52081528,188.01,187.91,2.6611]
[1736444929264,2.6608,187.94,187.9,2.6613]
[1736444929563,19.52081528,187.98,187.86,1.6217]
[1736444929866,1.6032,188.06,187.86,21.14251528]
[1736444929867,19.52081528,188.01,187.86,21.14251528]
[1736444930167,2.6605,187.96,187.86,21.14251528]
[1736444930465,2.6601,187.99,187.93,2.6609]
[1736444930662,19.52081528,188.04,187.89,19.52081528]
[1736444931055,19.52081528,188.04,187.9,3.0322]
[1736444931267,19.52081528,188.04,187.9,8.2522]
[1736444931867,2.6604,187.97,187.93,2.6609]
[1736444932066,2.6604,187.97,187.9,8.2522]
[1736444932463,19.52081528,188.04,187.9,8.2522]
[1736444932760,1.6032,188.06,187.92,19.52081528]
[1736444932962,2.6595,188.03,187.95,19.52081528]
[1736444933167,3.0725,188.09,187.95,19.52081528]
[1736444933470,2.6593,188.05,188.01,2.6596]
[1736444933659,3.0725,188.09,187.96,1.5504]
[1736444934058,1.5357,188.09,187.96,1.5504]
[1736444934469,2.6592,188.06,188.02,2.6595]
[1736444934769,19.52081528,188.13,187.98,24.76081528]
[1736444934958,19.52081528,188.13,187.99,3.1648]
[1736444935365,2.6593,188.05,188.01,2.6597]
[1736444935865,2.6593,188.05,187.99,3.1648]
[1736444935866,2.6596,188.03,187.99,4.2288]
[1736444936262,19.52081528,188.05,187.96,1.5504]
[1736444936466,2.66,188.0,187.96,4.2108]
[1736444937867,2.6599,188.0,187.96,1.5504]
[1736444938965,2.6599,188.0,187.96,4.2109]
[1736444942469,2.6604,187.97,187.9,5.24]
[1736444942669,19.52081528,188.07,187.91,1.6175]
[1736444943073,2.6597,188.02,187.95,2.6606]
[1736444943276,19.52081528,188.1,187.95,19.52081528]
[1736444943475,19.52081528,188.1,187.96,3.1354]
[1736444943775,2.6598,188.01,187.96,1.5292]
[1736444944173,19.52081528,188.1,187.96,1.5292]
[1736444944378,1.5601,188.13,187.99,19.52081528]
[1736444944571,1.552,188.15,188.02,19.52081528]
[1736444944770,1.552,188.15,188.07,2.6589]
[1736444944972,1.552,188.15,188.02,19.52081528]
[1736444945172,1.552,188.15,188.05,2.6591]
[1736444945368,2.6587,188.09,188.05,2.6591]
[1736444945572,1.552,188.15,188.02,19.52081528]
[1736444945772,1.552,188.15,188.04,2.6593]
[1736444945974,19.52081528,188.13,188.0,1.6175]
[1736444946173,19.52081528,188.07,187.96,1.5292]
[1736444946377,2.6601,188.0,187.96,4.1896]
[1736444946578,19.52081528,188.07,187.96,1.5292]
[1736444946779,5.24,188.09,187.96,1.5292]
[1736444947073,19.52081528,188.1,188.0,2.6599]
[1736444947278,3.2361,188.12,187.96,21.05001528]
[1736444947775,3.2361,188.12,188.01,2.6597]
[1736444947977,3.2361,188.12,187.96,21.05001528]
[1736444948178,19.52081528,188.1,187.96,1.5292]
[1736444948378,19.52081528,188.1,187.97,2.6602]
[1736444948879,2.6598,188.02,187.98,2.6602]
[1736444949077,2.6598,188.02,187.96,1.5292]
[1736444949078,19.52081528,188.1,187.96,1.5292]
[1736444949273,19.52081528,188.07,187.94,1.4896]
[1736444949474,2.6596,188.03,187.94,4.1503]
[1736444949679,1.5741,188.06,187.94,1.4896]
[1736444950082,1.5741,188.06,187.96,2.6605]
[1736444950680,2.6601,187.99,187.96,2.6605]
[1736444950876,1.5741,188.06,187.96,2.6605]
[1736444951479,2.6601,187.99,187.96,2.6605]
[1736444951684,1.5741,188.06,187.96,2.6605]
[1736444952181,1.5741,188.06,187.94,1.4896]
[1736444952880,2.6598,188.02,187.94,1.4896]
[1736444953284,1.5741,188.06,187.94,1.4896]
[1736444953490,2.6599,188.0,187.97,2.6602]
[1736444954081,2.6601,187.99,187.96,2.6605]
[1736444954287,2.6601,187.99,187.94,1.4896]
[1736444954483,1.5741,188.06,187.94,4.1503]
[1736444955085,1.5741,188.06,187.89,1.5722]
[1736444955086,2.6603,187.98,187.89,1.5722]
[1736444955391,19.52081528,188.04,187.89,1.5722]
[1736444955392,19.52081528,188.01,187.89,1.5722]
[1736444955688,2.6605,187.97,187.89,1.5722]
[1736444955887,2.6605,187.97,187.92,2.661]
[1736444956188,2.6602,187.98,187.89,21.09301528]
[1736444956788,2.6601,188.0,187.89,21.09301528]
[1736444956998,2.6601,188.0,187.92,19.52081528]
[1736444957491,2.6601,188.0,187.95,2.6605]
[1736444957689,1.5741,188.06,187.92,19.52081528]
[1736444957893,19.52081528,188.04,187.9,5.26]
[1736444958591,19.52081528,188.04,187.92,2.661]
[1736444958795,19.52081528,187.98,187.87,1.5777]
[1736444958989,2.6611,187.92,187.88,2.6616]
[1736444959185,19.52081528,187.98,187.87,1.5777]
[1736444959587,2.661,187.93,187.88,2.6616]
[1736444959790,2.661,187.93,187.87,1.5777]
[1736444960496,21.05271528,188.01,187.87,1.5777]
[1736444961095,21.05271528,188.01,187.89,2.6614]
[1736444961295,21.05271528,188.01,187.87,1.5777]
[1736444961995,2.6609,187.94,187.89,2.6614]
[1736444962691,21.05271528,188.01,187.87,1.5777]
[1736444963897,2.6606,187.96,187.91,2.6611]
[1736444964198,2.6606,187.96,187.87,1.5777]
[1736444964498,2.6606,187.96,187.92,2.661]
[1736444964694,21.05271528,188.01,187.87,1.5777]
[1736444965000,21.05271528,188.01,187.9,2.6613]
[1736444965893,2.6608,187.94,187.9,2.6613]
[1736444966101,21.05271528,188.01,187.89,2.6615]
[1736444966397,21.05271528,188.01,187.87,1.5777]
[1736444966598,21.05271528,188.01,187.91,2.6611]
[1736444967100,2.6608,187.95,187.91,2.6611]
[1736444967292,21.05271528,188.01,187.9,2.6613]
[1736444967498,2.661,187.93,187.87,1.5777]
[1736444967695,21.05271528,188.01,187.87,1.5777]
[1736444968001,21.05271528,188.01,187.88,2.6616]
[1736444968997,19.52081528,187.98,187.83,3.1444]
[1736444969200,19.52081528,187.93,187.8,0.23486]
[1736444969396,2.6625,187.82,187.8,0.23486]
[1736444970199,1.6112,187.89,187.8,0.23486]
[1736444971298,2.6626,187.81,187.8,0.23486]
[1736444973403,19.52081528,187.87,187.8,0.23486]
[1736444975001,2.6626,187.81,187.8,0.23486]
[1736444978096,2.6624,187.83,187.8,0.23486]
[1736444978302,1.6112,187.89,187.8,0.23486]
[1736444979005,19.52081528,187.9,187.8,0.23486]
[1736444979602,19.52081528,187.85,187.8,6e-05]
[1736444979806,2.6626,187.81,187.8,6e-05]
[1736444980904,6.7703,187.92,187.8,6e-05]
[1736444981103,19.52081528,187.9,187.8,6e-05]
[1736444981412,2.6626,187.82,187.8,6e-05]
[1736444981609,19.52081528,187.87,187.8,6e-05]
[1736444981804,19.52081528,187.84,187.8,6e-05]
[1736444982105,2.6626,187.81,187.8,6e-05]
[1736444984202,2.6629,187.8,187.75,2.6634]
[1736444984907,19.52081528,187.84,187.75,2.6634]
[1736444985109,2.663,187.79,187.75,2.6634]
[1736444985507,19.52081528,187.84,187.71,1.4975]
[1736444985809,19.52081528,187.77,187.69,3.0054]
[1736444986011,2.6639,187.73,187.65,1.4893]
[1736444986203,19.52081528,187.77,187.59,3.1842]
[1736444986398,19.52081528,187.77,187.6,6.8493]
[1736444986604,19.52081528,187.77,187.64,2.6649]
[1736444986903,19.52081528,187.74,187.64,2.6649]
[1736444987100,2.664,187.72,187.62,19.52081528]
[1736444987305,21.00711528,187.8,187.69,2.6642]
[1736444987507,21.00711528,187.8,187.62,19.52081528]
[1736444987707,2.6637,187.74,187.62,19.52081528]
[1736444987907,21.00711528,187.8,187.6,6.8493]
[1736444988109,21.00711528,187.8,187.65,19.52081528]
[1736444988312,2.6635,187.75,187.65,19.52081528]
[1736444988512,19.52081528,187.77,187.62,19.52081528]
[1736444988813,19.52081528,187.77,187.62,5.38]
[1736444989007,19.52081528,187.77,187.68,2.6644]
[1736444989204,2.6636,187.74,187.63,5.42]
[1736444989708,19.52081528,187.77,187.7,2.664]
[1736444989909,2.6635,187.75,187.7,2.664]
[1736444990103,19.52081528,187.77,187.7,2.664]
[1736444990604,19.52081528,187.8,187.65,19.52081528]
[1736444990807,3.2338,187.83,187.68,19.52081528]
[1736444990808,22.75461528,187.83,187.68,19.52081528]
[1736444991004,22.75461528,187.83,187.69,4.68]
[1736444991203,2.6629,187.79,187.75,2.6634]
[1736444991714,2.6628,187.8,187.76,2.6633]
[1736444991912,19.52081528,187.86,187.71,24.94081528]
[1736444992210,2.6627,187.81,187.76,2.6633]
[1736444992514,19.52081528,187.86,187.71,5.42]
[1736444993104,2.6627,187.81,187.71,5.42]
[1736444993309,22.59001528,187.89,187.72,19.52081528]
[1736444993506,2.6618,187.87,187.83,2.6623]
[1736444993713,4.7531,187.97,187.81,19.52081528]
[1736444994008,24.27391528,187.97,187.82,4.7616]
[1736444994214,141.8817525,188.02,187.88,19.52081528]
[1736444994406,141.8817525,188.02,187.89,5.5]
[1736444994812,177.35219063,188.04,187.89,25.02081528]
[1736444995016,2.6601,188.0,187.95,2.6606]
[1736444995223,1.6275,188.05,187.95,2.6606]
[1736444995609,1.6275,188.05,187.89,5.5]
[1736444995610,19.52081528,188.0,187.89,5.5]
[1736444996110,2.6606,187.96,187.91,2.6612]
[1736444996317,19.52081528,188.0,187.89,5.5]
[1736444996918,19.52081528,188.0,187.85,5.54]
[1736444997114,19.52081528,187.97,187.82,4.7616]
[1736444997314,2.6615,187.9,187.82,7.4241]
[1736444997514,19.52081528,187.94,187.82,4.7616]
[1736444997910,2.6616,187.89,187.82,4.7616]
[1736444998311,19.52081528,187.94,187.82,4.7616]
[1736444998616,19.52081528,187.94,187.82,3.2167]
[1736444999212,19.52081528,187.91,187.82,3.2167]
[1736444999617,19.52081528,187.91,187.78,1.536]
[1736444999812,19.52081528,187.91,187.79,3.0113]
[1736445000007,2.6617,187.88,187.79,5.6741]
[1736445000215,19.52081528,187.91,187.79,3.0113]
[1736445000514,2.6619,187.86,187.81,2.6626]
[1736445000706,2.6619,187.86,187.79,3.0113]
[1736445000707,19.52081528,187.91,187.79,3.0113]
[1736445000913,19.52081528,187.85,187.73,5.52]
[1736445001113,19.52081528,187.85,187.74,2.6635]
[1736445001411,19.52081528,187.88,187.73,5.52]
[1736445002116,19.52081528,187.88,187.78,2.6629]
[1736445002309,19.52081528,187.85,187.73,5.52]
[1736445003021,2.6629,187.79,187.74,2.6636]
[1736445003313,19.52081528,187.85,187.73,5.52]
[1736445003517,2.6628,187.8,187.75,2.6635]
[1736445003717,19.52081528,187.85,187.73,5.52]
[1736445004919,19.52081528,187.85,187.74,2.6635]
[1736445005113,19.52081528,187.85,187.73,5.52]
[1736445005315,1.4982,187.86,187.73,5.52]
[1736445005515,2.6624,187.83,187.78,2.663]
[1736445005918,2.6622,187.85,187.75,19.52081528]
[1736445006119,5.5,187.89,187.73,5.52]
[1736445006319,19.52081528,187.82,187.71,4.6405]
[1736445006520,19.52081528,187.82,187.66,79.96905475]
[1736445006717,4.8075,187.81,187.67,5.52]
[1736445007118,4.8075,187.81,187.66,79.96905475]
[1736445007423,4.8075,187.81,187.66,85.50905475]
[1736445007822,4.8075,187.81,187.7,2.6641]
[1736445007823,2.6635,187.75,187.7,2.6641]
[1736445008216,19.52081528,187.79,187.65,4.8324]
[1736445008519,19.52081528,187.73,187.55,5.54]
[1736445008726,1.6126,187.72,187.57,4.8034]
[1736445009022,2.6647,187.67,187.62,2.6653]
[1736445009428,2.665,187.65,187.6,2.6656]
[1736445009629,19.52081528,187.7,187.57,4.8034]
[1736445009825,4.7716,187.72,187.57,4.8034]
[1736445010026,2.6648,187.66,187.61,2.6654]
[1736445010626,2.6649,187.65,187.6,2.6656]
[1736445010927,19.52081528,187.7,187.57,4.8034]
[1736445011228,19.52081528,187.7,187.28,42.07037423]
[1736445011229,19.52081528,187.64,187.45,5.54]
[1736445011425,19.52081528,187.64,187.48,4.6554]
[1736445012522,19.52081528,187.64,187.48,10.1954]
[1736445012724,5.54,187.69,187.5,19.52081528]
[1736445013030,21.11901528,187.68,187.5,19.52081528]
[1736445013225,2.6657,187.59,187.53,2.6665]
[1736445013427,21.11901528,187.68,187.53,2.6665]
[1736445013624,19.52081528,187.62,187.48,4.6554]
[1736445013926,2.6663,187.55,187.48,4.6554]
[1736445014128,19.52081528,187.59,187.44,19.52081528]
[1736445014326,3.0739,187.61,187.41,25.12081528]
[1736445014327,19.52081528,187.56,187.41,25.12081528]
[1736445014530,19.52081528,187.56,187.39,10.3534]
[1736445014926,1.5982,187.55,187.39,4.7534]
[1736445015130,19.52081528,187.5,187.3,21.97343857]
[1736445015429,2.6679,187.44,187.38,2.6687]
[1736445015833,19.52081528,187.5,187.33,22.66571528]
[1736445016031,19.52081528,187.5,187.33,3.1449]
[1736445016222,19.52081528,187.5,187.33,22.66571528]
[1736445016622,2.668,187.43,187.36,2.6689]
[1736445016823,19.52081528,187.47,187.33,1.6089]
[1736445017428,19.52081528,187.53,187.36,19.52081528]
[1736445017629,19.52081528,187.53,187.39,19.52081528]
[1736445017827,19.52081528,187.53,187.4,5.7]
[1736445018131,2.6671,187.5,187.44,2.6678]
[1736445018331,19.52081528,187.53,187.4,5.7]
[1736445018530,1.5982,187.55,187.4,5.7]
[1736445018730,1.5982,187.55,187.46,2.6675]
[1736445018929,91.9139,187.61,187.45,19.52081528]
[1736445019235,2.6662,187.56,187.45,19.52081528]
[1736445019532,2.6662,187.56,187.46,3.1519]
[1736445019930,19.52081528,187.59,187.46,5.8193]
[1736445020131,19.52081528,187.59,187.46,3.1519]
[1736445021635,1.4836,187.6,187.46,3.1519]
[1736445021934,1.5345,187.61,187.48,19.52081528]
[1736445022135,19.52081528,187.69,187.51,19.52081528]
[1736445022337,19.52081528,187.72,187.57,19.52081528]
[1736445022529,4.634,187.73,187.58,5.76]
[1736445022728,3.0317,187.73,187.59,3.1639]
[1736445023030,19.52081528,187.72,187.59,3.1639]
[1736445023230,19.52081528,187.69,187.58,1.4953]
[1736445023431,3.0317,187.73,187.49,5.78]
[1736445023432,19.52081528,187.66,187.49,5.78]
[1736445023636,19.52081528,187.59,187.49,5.78]
[1736445024025,2.6663,187.56,187.5,2.667]
[1736445024232,19.52081528,187.59,187.49,5.78]
[1736445024737,19.52081528,187.59,187.52,2.6667]
[1736445025036,2.666,187.58,187.51,2.6668]
[1736445025235,19.52081528,187.56,187.38,80.05802733]
[1736445025427,31.96554434,187.56,187.43,5.78]
[1736445025742,2.6666,187.53,187.43,5.8]
[1736445025933,31.96554434,187.56,187.4,31.96554434]
[1736445026134,31.96554434,187.56,187.41,5.8]
[1736445026336,31.96554434,187.53,187.39,10.551]
[1736445026632,31.96554434,187.5,187.39,4.751]
[1736445026837,31.96554434,187.5,187.44,2.6678]
[1736445027040,31.96554434,187.5,187.39,4.751]
[1736445027041,31.96554434,187.53,187.39,4.751]
[1736445027632,31.96554434,187.5,187.39,4.751]
[1736445027828,31.96554434,187.47,187.29,31.96554434]
[1736445028034,2.6679,187.44,187.35,2.6691]
[1736445028232,5.84,187.44,187.2,60.57143392]
[1736445028437,31.96554434,187.38,187.22,31.96554434]
[1736445028642,34.63424434,187.38,187.22,31.96554434]
[1736445028843,34.63424434,187.38,187.23,0.98086088]
[1736445029037,2.6689,187.37,187.3,2.6698]
[1736445029238,2.6689,187.37,187.22,31.96554434]
[1736445029536,31.96554434,187.38,187.23,0.98116164]
[1736445029842,31.96554434,187.41,187.23,0.98116164]
[1736445030037,31.96554434,187.41,187.25,31.96554434]
[1736445030238,31.96554434,187.41,187.22,31.96554434]
[1736445030535,31.96554434,187.47,187.28,31.96554434]
[1736445030740,34.63314434,187.47,187.31,31.96554434]
[1736445030939,34.63314434,187.47,187.32,4.6838]
[1736445031136,35.12164434,187.5,187.32,4.6838]
[1736445031441,2.6673,187.48,187.32,4.6838]
[1736445031638,31.96554434,187.47,187.32,4.6838]
[1736445031840,2.6679,187.44,187.38,2.6686]
[1736445032035,31.96554434,187.44,187.32,4.6838]
[1736445032235,31.96554434,187.41,187.31,5.94]
[1736445032540,31.96554434,187.38,187.31,2.6697]
[1736445032737,31.96554434,187.38,187.26,10.6438]
[1736445032937,31.96554434,187.44,187.28,31.96554434]
[1736445033441,37.92554434,187.47,187.31,31.96554434]
[1736445033633,31.96554434,187.47,187.31,31.96554434]
[1736445033833,2.6679,187.45,187.38,2.6686]
[1736445034041,31.96554434,187.41,187.26,10.6438]
[1736445034538,31.96554434,187.44,187.35,2.6691]
[1736445034839,31.96554434,187.44,187.27,31.96554434]
[1736445035141,31.96554434,187.44,187.26,10.6438]
[1736445035142,31.96554434,187.47,187.3,31.96554434]
[1736445035335,31.96554434,187.47,187.31,0.98092975]
[1736445036132,31.96554434,187.47,187.3,31.96554434]
[1736445036340,31.96554434,187.47,187.31,0.98084523]
[1736445036638,31.96554434,187.44,187.35,2.6691]
[1736445037041,31.96554434,187.41,187.3,6.1]
[1736445038642,2.6689,187.38,187.33,2.6693]
[1736445039236,31.96554434,187.44,187.3,6.1]
[1736445039639,2.6683,187.41,187.27,31.96554434]
[1736445039837,31.96554434,187.41,187.28,7.06096737]
[1736445040038,31.96554434,187.41,187.28,6.08]
[1736445040233,2.6685,187.4,187.35,2.669]
[1736445040437,31.96554434,187.44,187.28,6.08]
[1736445040636,6.08,187.51,187.3,31.96554434]
[1736445040637,31.96554434,187.47,187.3,31.96554434]
[1736445040840,2.668,187.44,187.31,0.98090349]
[1736445041239,31.96554434,187.47,187.31,0.98090349]
[1736445041441,2.6677,187.46,187.41,2.6682]
[1736445041643,31.96554434,187.5,187.33,31.96554434]
[1736445041837,31.96554434,187.47,187.34,0.98065353]
[1736445042039,31.96554434,187.44,187.28,6.08]
[1736445042246,31.96554434,187.41,187.28,6.08]
[1736445042443,31.96554434,187.38,187.31,2.6697]
[1736445042744,31.96554434,187.38,187.28,6.08]
[1736445042939,2.669,187.37,187.31,2.6696]
[1736445043139,3.0359,187.4,187.28,6.08]
[1736445043346,31.96554434,187.41,187.29,1.06786267]
[1736445044340,1.5921,187.43,187.28,31.96554434]
[1736445045547,1.5921,187.43,187.37,2.6688]
[1736445045548,2.6683,187.42,187.37,2.6688]
[1736445045939,31.96554434,187.45,187.28,31.96554434]
[1736445046138,3.1029,187.46,187.31,31.96554434]
[1736445046336,3.1029,187.46,187.32,0.98089498]
[1736445046536,1.4962,187.5,187.34,31.96554434]
[1736445046841,2.6675,187.47,187.42,2.6681]
[1736445047246,1.4962,187.5,187.36,3.1438]
[1736445047442,31.96554434,187.57,187.4,31.96554434]
[1736445047637,31.96554434,187.6,187.43,31.96554434]
[1736445047842,34.63114434,187.6,187.55,2.6663]
[1736445048145,31.96554434,187.6,187.44,7.7795]
[1736445048442,3.0808,187.61,187.46,31.96554434]
[1736445048646,31.96554434,187.6,187.46,31.96554434]
[1736445049348,31.96554434,187.6,187.44,7.7795]
[1736445050043,2.666,187.57,187.44,7.7795]
[1736445050449,31.96554434,187.6,187.44,7.7795]
[1736445050648,3.0808,187.61,187.44,7.7795]
[1736445051148,31.96554434,187.66,187.49,31.96554434]
[1736445051340,31.96554434,187.66,187.52,31.96554434]
[1736445051543,31.96554434,187.66,187.53,7.8561]
[1736445051840,31.96554434,187.69,187.53,7.8561]
[1736445052554,3.1033,187.71,187.59,31.96554434]
[1736445052851,141.8817525,187.8,187.59,31.96554434]
[1736445052852,31.96554434,187.76,187.59,31.96554434]
[1736445053039,31.96554434,187.73,187.56,31.96554434]
[1736445053238,31.96554434,187.7,187.53,39.82164434]
[1736445053446,31.96554434,187.7,187.53,33.60164434]
[1736445053651,2.6645,187.68,187.61,2.6654]
[1736445054448,2.6646,187.67,187.54,6.26]
[1736445054646,31.96554434,187.7,187.54,6.26]
[1736445054851,31.96554434,187.74,187.54,6.26]
[1736445054852,2.6649,187.66,187.59,2.6657]
[1736445055150,31.96554434,187.67,187.54,6.26]
[1736445056047,2.6647,187.66,187.54,6.26]
[1736445056449,1.5933,187.69,187.54,6.26]
[1736445056647,2.6645,187.68,187.54,6.26]
[1736445056842,31.96554434,187.7,187.54,6.26]
[1736445057449,31.96554434,187.64,187.53,1.6361]
[1736445057747,31.96554434,187.64,187.5,3.1164]
[1736445057748,2.6656,187.6,187.5,3.1164]
[1736445057947,31.96554434,187.64,187.5,3.1164]
[1736445058157,34.63074434,187.64,187.57,2.666]
[1736445058347,31.96554434,187.67,187.5,35.08194434]
[1736445059151,31.96554434,187.7,187.53,31.96554434]
[1736445059452,2.6642,187.71,187.64,2.665]
[1736445059653,2.6642,187.71,187.58,6.3]
[1736445059850,1.5933,187.73,187.58,6.3]
[1736445060049,31.96554434,187.71,187.58,6.3]
[1736445060253,31.96554434,187.68,187.51,1.06660978]
[1736445060453,31.96554434,187.65,187.51,1.06660978]
[1736445060748,1.4918,187.67,187.51,1.06660978]
[1736445061348,31.96554434,187.62,187.51,1.06660978]
[1736445061548,31.96554434,187.59,187.51,1.06660978]
[1736445061748,2.6665,187.54,187.48,2.6673]
[1736445061947,31.96554434,187.56,187.42,6.32]
[1736445062144,6.34,187.6,187.4,1.5713]
[1736445062351,31.96554434,187.53,187.4,1.5713]
[1736445063752,2.6671,187.5,187.4,1.5713]
[1736445065157,31.96554434,187.53,187.4,1.5713]
[1736445065453,31.96554434,187.5,187.32,31.96554434]
[1736445065762,31.96554434,187.47,187.33,6.3]
[1736445066355,31.96554434,187.47,187.36,2.6689]
[1736445066557,31.96554434,187.47,187.33,6.3]
[1736445067655,31.96554434,187.44,187.3,3.0927]
[1736445067857,31.96554434,187.41,187.23,31.96554434]
[1736445068055,3.0174,187.4,187.23,38.28554434]
[1736445068361,3.0174,187.4,187.26,31.96554434]
[1736445068761,5.6859,187.4,187.34,2.6692]
[1736445068962,3.0174,187.4,187.26,31.96554434]
[1736445069863,2.6688,187.38,187.32,2.6695]
[1736445070060,3.0174,187.4,187.26,31.96554434]
[1736445070362,2.6686,187.39,187.33,2.6693]
[1736445070659,31.96554434,187.47,187.34,6.3]
[1736445071062,31.96554434,187.44,187.34,6.3]
[1736445071561,2.6682,187.42,187.36,2.669]
[1736445071763,31.96554434,187.44,187.34,6.3]
[1736445072055,2.6685,187.4,187.33,2.6693]
[1736445072259,1.5052,187.52,187.02,2.28454646]
[1736445072260,31.96554434,187.34,187.12,4.7233]
[1736445072457,6.34,187.33,187.14,31.96554434]
[1736445072761,31.96554434,187.34,187.14,31.96554434]
[1736445072962,6.32,187.33,187.18,0.24648]
[1736445073259,2.6707,187.25,187.19,2.6714]
[1736445073656,31.96554434,187.3,187.18,0.24648]
[1736445073858,2.6708,187.24,187.18,0.24648]
[1736445074156,1.6166,187.29,187.18,0.24648]
[1736445074354,2.6707,187.24,187.18,2.91808]
[1736445074561,1.6166,187.29,187.18,0.24648]
[1736445074951,2.6707,187.24,187.18,0.24648]
[1736445075152,1.6166,187.29,187.18,0.24648]
[1736445075362,1.6049,187.28,187.18,0.24648]
[1736445075966,31.96554434,187.27,187.18,0.24648]
[1736445076254,2.6714,187.19,187.18,0.24648]
[1736445076460,31.96554434,187.27,187.18,0.24648]
[1736445076664,2.671,187.22,187.18,0.24648]
[1736445076967,1.6049,187.28,187.18,0.24648]
[1736445077159,31.96554434,187.24,187.18,0.24648]
[1736445077354,31.96554434,187.24,187.07,31.96554434]
[1736445077555,31.96554434,187.24,187.08,0.98198099]
[1736445077854,31.96554434,187.24,187.07,31.96554434]
[1736445078061,1.6049,187.28,187.1,31.96554434]
[1736445078260,1.6049,187.28,187.11,7.34202965]
[1736445078460,1.6049,187.28,187.11,6.36]
[1736445078656,1.6049,187.28,187.12,0.98186137]
[1736445078856,1.6049,187.28,187.13,31.96554434]
[1736445079058,1.6049,187.28,187.14,0.98186137]
[1736445079256,1.538,187.3,187.16,31.96554434]
[1736445079457,31.96554434,187.32,187.17,1.5621]
[1736445079661,3.0937,187.36,187.17,1.5621]
[1736445079662,31.96554434,187.35,187.19,31.96554434]
[1736445079962,31.96554434,187.32,187.2,6.34]
[1736445080158,2.6702,187.28,187.2,6.34]